bitfinex/quotes_BTCUSD_20230115
["timestamp","ask_amount","ask_price","bid_price","bid_amount"]
[1673814629240,0.71254557,20872.0,20869.0,0.77346327]
[1673814629982,0.62254557,20872.0,20869.0,0.77346327]
[1673814630229,0.71154557,20872.0,20869.0,0.77346327]
[1673814630477,0.92670534,20872.0,20869.0,0.77346327]
[1673814630730,0.92670534,20872.0,20869.0,0.12246248]
[1673814630975,0.50826034,20871.0,20869.0,0.00776248]
[1673814631228,0.83772834,20871.0,20869.0,0.00776248]
[1673814631479,0.149676,20870.0,20869.0,0.00776248]
[1673814631974,0.62257957,20871.0,20869.0,0.00776248]
[1673814632231,1.19071457,20871.0,20869.0,0.00776248]
[1673814632487,0.62254557,20872.0,20869.0,0.48867044]
[1673814632756,0.479121,20872.0,20870.0,0.66565587]
[1673814633523,0.09,20871.0,20870.0,0.66565587]
[1673814634040,0.09,20871.0,20870.0,0.04886704]
[1673814634514,0.479121,20872.0,20870.0,0.04886704]
[1673814634784,0.569121,20872.0,20870.0,0.04886704]
[1673814635039,0.479121,20872.0,20870.0,0.04886704]
[1673814635291,0.09,20871.0,20870.0,0.04886704]
[1673814635539,0.479121,20872.0,20870.0,0.62633139]
[1673814635783,0.569121,20872.0,20870.0,0.62633139]
[1673814636511,0.569121,20872.0,20870.0,0.57746435]
[1673814640474,0.09,20872.0,20870.0,0.57746435]
[1673814640719,0.09,20872.0,20871.0,0.550134]
[1673814641215,0.09,20872.0,20871.0,0.850134]
[1673814641710,0.04890187,20874.0,20871.0,0.850134]
[1673814641975,0.082,20872.0,20871.0,0.49172595]
[1673814642221,0.082,20872.0,20871.0,0.851234]
[1673814643017,0.082,20872.0,20871.0,1.330367]
[1673814643246,0.082,20872.0,20871.0,1.58843365]
[1673814643502,0.04890187,20874.0,20871.0,2.22458047]
[1673814643755,0.04890187,20874.0,20873.0,0.2292]
[1673814644006,0.62242057,20877.0,20873.0,0.8504]
[1673814644269,0.67045277,20877.0,20875.0,0.1147]
[1673814644517,0.67045277,20877.0,20875.0,0.30542595]
[1673814644772,0.67045277,20877.0,20875.0,0.1147]
[1673814645019,0.62242057,20877.0,20875.0,0.1147]
[1673814645269,0.62242057,20877.0,20875.0,0.77574674]
[1673814646287,0.62742057,20877.0,20875.0,0.79174674]
[1673814648058,0.84258034,20877.0,20875.0,0.1307]
[1673814648313,0.35858434,20876.0,20875.0,0.016]
[1673814648569,0.83760234,20876.0,20875.0,0.016]
[1673814649537,0.83760234,20876.0,20874.0,0.1147]
[1673814649768,0.84260234,20876.0,20875.0,0.016]
[1673814650511,0.83760234,20876.0,20874.0,0.1147]
[1673814650766,7.326e-05,20875.0,20874.0,0.1147]
[1673814651760,0.14349783,20875.0,20874.0,0.1147]
[1673814651974,7.326e-05,20875.0,20874.0,0.1147]
[1673814652537,0.03807326,20875.0,20874.0,0.1167]
[1673814653038,0.03807326,20875.0,20874.0,0.002]
[1673814653289,0.18149783,20875.0,20874.0,0.002]
[1673814655704,0.18149783,20875.0,20874.0,0.00192336]
[1673814657441,0.03807326,20875.0,20874.0,0.00192336]
[1673814658802,0.18149783,20875.0,20874.0,0.00192336]
[1673814659734,0.66053883,20875.0,20874.0,0.00192336]
[1673814660192,0.8756986,20875.0,20874.0,0.00192336]
[1673814660694,1.02509721,20875.0,20874.0,0.00192336]
[1673814661235,0.87542121,20875.0,20874.0,0.00192336]
[1673814661954,1.02509721,20875.0,20874.0,0.00192336]
[1673814662220,0.88195003,20875.0,20874.0,0.00192336]
[1673814662483,0.87541447,20875.0,20874.0,0.00192336]
[1673814665467,0.73227403,20875.0,20874.0,0.00192336]
[1673814667047,1.01915373,20875.0,20874.0,0.00192336]
[1673814667562,1.16882973,20875.0,20874.0,0.00192336]
[1673814667813,1.01915373,20875.0,20874.0,0.00192336]
[1673814668054,0.73227403,20875.0,20874.0,0.00192336]
[1673814669059,1.01915373,20875.0,20874.0,0.00192336]
[1673814669322,0.73227403,20875.0,20874.0,0.00192336]
[1673814670053,0.87543375,20875.0,20874.0,0.00192336]
[1673814670264,0.88195003,20875.0,20874.0,0.00192336]
[1673814670483,0.87543528,20875.0,20874.0,0.00192336]
[1673814670800,0.73227403,20875.0,20874.0,0.00192336]
[1673814671314,0.87543681,20875.0,20874.0,0.00192336]
[1673814671567,0.73227403,20875.0,20874.0,0.00192336]
[1673814672315,1.01915373,20875.0,20874.0,0.00192336]
[1673814673397,0.73227403,20875.0,20874.0,0.00192336]
[1673814673897,1.01915373,20875.0,20874.0,0.00192336]
[1673814674888,1.01915373,20875.0,20874.0,0.00210336]
[1673814675144,0.80399396,20875.0,20874.0,0.00210336]
[1673814675688,1.60006237,20875.0,20874.0,0.00210336]
[1673814675873,1.74973837,20875.0,20874.0,0.00210336]
[1673814676376,1.60006237,20875.0,20874.0,0.00210336]
[1673814676640,0.95366996,20875.0,20874.0,0.64313868]
[1673814676895,0.66038517,20875.0,20874.0,0.64313868]
[1673814679415,0.87528657,20875.0,20874.0,0.64313868]
[1673814680171,0.87528657,20875.0,20874.0,0.56103868]
[1673814680417,0.66038517,20875.0,20874.0,0.56103868]
[1673814680735,0.87528657,20875.0,20874.0,0.56103868]
[1673814682376,0.66038517,20875.0,20874.0,0.56103868]
[1673814683159,0.87528657,20875.0,20874.0,0.56103868]
[1673814683410,0.66038517,20875.0,20874.0,0.56103868]
[1673814683666,0.87528657,20875.0,20874.0,0.56103868]
[1673814683922,0.66038517,20875.0,20874.0,0.56103868]
[1673814684179,0.87528657,20875.0,20874.0,0.56103868]
[1673814685221,0.73201566,20875.0,20874.0,0.56103868]
[1673814686269,0.87539819,20875.0,20874.0,0.56103868]
[1673814686786,0.66049679,20875.0,20874.0,0.56103868]
[1673814687069,0.18145579,20875.0,20874.0,0.56103868]
[1673814687591,0.18145579,20875.0,20874.0,0.65436921]
[1673814687840,0.03795523,20875.0,20874.0,1.20490321]
[1673814688084,0.03795523,20875.0,20874.0,1.50490321]
[1673814688341,0.03795523,20875.0,20874.0,1.20490321]
[1673814688610,0.03795523,20875.0,20874.0,1.50490321]
[1673814689096,0.03795523,20875.0,20874.0,1.20490321]
[1673814689907,0.03795523,20875.0,20874.0,1.20472321]
[1673814690424,0.03795523,20875.0,20874.0,1.20517321]
[1673814693943,0.03795523,20875.0,20874.0,1.09057321]
[1673814694407,0.03795523,20875.0,20874.0,0.76933921]
[1673814694665,0.03795523,20875.0,20874.0,1.09057321]
[1673814698319,0.03795523,20875.0,20874.0,0.99724268]
[1673814698578,0.18133776,20875.0,20874.0,0.99724268]
[1673814698834,0.18133776,20875.0,20874.0,0.67600868]
[1673814701155,0.18133776,20875.0,20874.0,0.56130868]
[1673814701659,0.03795523,20875.0,20874.0,0.56130868]
[1673814701900,0.03795523,20875.0,20874.0,0.97590021]
[1673814702861,0.03795523,20875.0,20874.0,0.65466621]
[1673814704835,0.03795523,20875.0,20874.0,0.65421621]
[1673814705564,0.03795523,20875.0,20874.0,0.65495621]
[1673814706523,0.03795523,20875.0,20874.0,0.56159868]
[1673814708481,0.03795523,20875.0,20874.0,0.88283268]
[1673814710175,0.03795523,20875.0,20874.0,0.56159868]
[1673814710423,0.03795523,20875.0,20874.0,0.88283268]
[1673814711175,0.03795523,20875.0,20874.0,0.56159868]
[1673814711943,0.03795523,20875.0,20874.0,0.88283268]
[1673814712899,0.03795523,20875.0,20874.0,0.56159868]
[1673814715593,0.03795523,20875.0,20874.0,0.88283268]
[1673814715836,0.03795523,20875.0,20874.0,0.56159868]
[1673814716082,0.03795523,20875.0,20874.0,0.00266336]
[1673814716330,0.18133776,20875.0,20874.0,0.00266336]
[1673814716583,0.19543776,20875.0,20874.0,0.00266336]
[1673814719539,0.41033916,20875.0,20874.0,0.00266336]
[1673814719792,0.41033916,20875.0,20874.0,0.00192336]
[1673814720555,0.41033916,20875.0,20874.0,0.00254336]
[1673814720805,1.28421438,20875.0,20874.0,0.00245331]
[1673814721611,0.99733468,20875.0,20874.0,0.00245331]
[1673814722309,1.76348266,20875.0,20874.0,0.00245331]
[1673814722554,1.47637568,20875.0,20874.0,0.00245331]
[1673814723076,1.76347301,20875.0,20874.0,0.00245331]
[1673814723822,1.59047568,20875.0,20874.0,0.00245331]
[1673814724069,1.75492684,20875.0,20874.0,0.00245331]
[1673814724318,1.59897568,20875.0,20874.0,0.00245331]
[1673814724822,1.88602871,20875.0,20874.0,0.00245331]
[1673814725067,1.59897568,20875.0,20874.0,0.00245331]
[1673814726084,1.88596258,20875.0,20874.0,0.00245331]
[1673814729871,1.52736296,20875.0,20874.0,0.00245331]
[1673814730122,1.88596258,20875.0,20874.0,0.00245331]
[1673814731629,1.59897568,20875.0,20874.0,0.00245331]
[1673814731882,1.88584729,20875.0,20874.0,0.00245331]
[1673814732126,1.88584378,20875.0,20874.0,0.00245331]
[1673814732369,1.59897568,20875.0,20874.0,0.00245331]
[1673814732629,1.93786811,20875.0,20874.0,0.00245331]
[1673814732882,0.00087211,20873.0,20869.0,0.00776248]
[1673814733146,0.14341932,20871.0,20869.0,0.00776248]
[1673814733661,0.6223243,20870.0,20869.0,0.00776248]
[1673814733985,0.263776,20870.0,20869.0,0.00776248]
[1673814734197,0.88635132,20870.0,20869.0,0.00776248]
[1673814734439,0.90045132,20870.0,20869.0,0.00776248]
[1673814735462,1.1240803,20870.0,20869.0,0.00776248]
[1673814735705,1.23859067,20870.0,20869.0,0.00776248]
[1673814735947,1.02346169,20870.0,20869.0,0.00776248]
[1673814736491,1.32959067,20870.0,20869.0,0.00776248]
[1673814736712,1.23859067,20870.0,20869.0,0.00776248]
[1673814736966,1.75204301,20870.0,20869.0,0.00776248]
[1673814737213,1.66104301,20870.0,20869.0,0.00776248]
[1673814737466,2.24769617,20870.0,20869.0,0.00776248]
[1673814737718,2.10395936,20870.0,20869.0,0.00776248]
[1673814738017,1.96085752,20870.0,20869.0,0.00776248]
[1673814738755,2.10395671,20870.0,20869.0,0.00776248]
[1673814739036,2.01295671,20870.0,20869.0,0.00776248]
[1673814739278,1.33041017,20870.0,20869.0,0.00776248]
[1673814739548,1.02328119,20870.0,20869.0,0.00776248]
[1673814739790,0.971182,20870.0,20869.0,0.00776248]
[1673814740785,0.857082,20870.0,20869.0,0.00776248]
[1673814741813,0.707406,20870.0,20869.0,0.00776248]
[1673814742314,0.857082,20870.0,20869.0,0.00776248]
[1673814743858,0.971082,20870.0,20869.0,0.00776248]
[1673814747843,0.821406,20870.0,20869.0,0.00776248]
[1673814749684,0.970832,20870.0,20869.0,0.00776248]
[1673814750449,0.971092,20870.0,20869.0,0.00776248]
[1673814755363,0.593016,20870.0,20869.0,0.00776248]
[1673814756625,0.584516,20870.0,20869.0,0.00767386]
[1673814758861,0.734192,20870.0,20869.0,0.00767386]
[1673814759116,0.72761519,20870.0,20869.0,0.00767386]
[1673814761970,0.584516,20870.0,20869.0,0.00767386]
[1673814762730,0.10536,20870.0,20869.0,0.71461511]
[1673814762972,0.10536,20870.0,20869.0,1.26421728]
[1673814764713,0.0141,20870.0,20869.0,1.26421728]
[1673814764951,0.0971,20870.0,20869.0,1.26521728]
[1673814765188,0.0141,20870.0,20869.0,1.26421728]
[1673814765429,0.0201,20870.0,20869.0,1.27221728]
[1673814765929,0.0201,20870.0,20869.0,1.27229728]
[1673814766999,0.0201,20870.0,20869.0,1.07647911]
[1673814768265,0.006,20870.0,20869.0,1.06326943]
[1673814768789,0.006,20870.0,20869.0,0.94866943]
[1673814769820,0.14909919,20870.0,20869.0,0.94866943]
[1673814771065,0.006,20870.0,20869.0,0.94866943]
[1673814771810,0.14909919,20870.0,20869.0,0.94866943]
[1673814773332,0.14909919,20870.0,20869.0,0.62743543]
[1673814773570,0.14909919,20870.0,20869.0,0.55087125]
[1673814773800,0.14909919,20870.0,20869.0,0.66557125]
[1673814774501,0.22112898,20870.0,20869.0,0.98680525]
[1673814774756,0.22112898,20870.0,20869.0,0.66557125]
[1673814775238,0.36454191,20870.0,20869.0,0.66557125]
[1673814775494,0.14941293,20870.0,20869.0,0.66557125]
[1673814776477,0.36454191,20870.0,20869.0,0.66557125]
[1673814777541,0.36454191,20870.0,20869.0,0.12278]
[1673814777788,0.22112898,20870.0,20869.0,0.12278]
[1673814778288,0.36454022,20870.0,20869.0,0.12278]
[1673814778543,0.36454129,20870.0,20869.0,0.12278]
[1673814778800,1.56473217,20870.0,20869.0,0.00808]
[1673814779067,1.42756952,20870.0,20869.0,0.00808]
[1673814779810,1.27789352,20870.0,20869.0,0.008]
[1673814780022,1.27189352,20870.0,20867.0,0.00836664]
[1673814780302,1.64271396,20870.0,20869.0,0.001]
[1673814780562,1.64272979,20870.0,20869.0,0.00146]
[1673814780805,1.50558535,20870.0,20869.0,0.00146]
[1673814781062,1.83147898,20870.0,20869.0,0.00146]
[1673814781323,1.74747898,20870.0,20869.0,0.00046]
[1673814781587,1.83147898,20870.0,20869.0,0.00146]
[1673814781841,1.50558535,20870.0,20869.0,0.00146]
[1673814783890,1.61998535,20870.0,20869.0,0.00146]
[1673814785903,1.26143704,20870.0,20869.0,0.00146]
[1673814786400,1.26993704,20870.0,20869.0,0.00146]
[1673814787617,1.50088293,20870.0,20869.0,0.00146]
[1673814788365,1.60088293,20870.0,20869.0,0.00146]
[1673814788796,1.50088293,20870.0,20869.0,0.00136543]
[1673814789303,1.60088293,20870.0,20869.0,0.00136543]
[1673814790299,1.26993704,20870.0,20869.0,0.00136543]
[1673814790552,1.80618938,20870.0,20869.0,0.00136543]
[1673814791566,0.00047343,20868.0,20867.0,0.00836664]
[1673814791817,2.04667394,20868.0,20867.0,0.00836664]
[1673814792066,1.61875143,20868.0,20867.0,0.00836664]
[1673814792325,1.46907626,20868.0,20867.0,0.00836664]
[1673814792581,1.40376075,20868.0,20867.0,0.00836664]
[1673814793353,1.48876075,20868.0,20867.0,0.00936664]
[1673814793829,1.70371159,20868.0,20867.0,0.00936664]
[1673814794820,1.70371159,20868.0,20867.0,0.00950664]
[1673814796306,1.79539055,20868.0,20867.0,0.00950664]
[1673814796525,2.79599619,20868.0,20867.0,0.00950664]
[1673814797006,2.37354385,20868.0,20867.0,0.00950664]
[1673814797317,2.48804385,20868.0,20867.0,0.00950664]
[1673814798526,2.39636489,20868.0,20867.0,0.00950664]
[1673814798791,1.60326075,20868.0,20867.0,0.00950664]
[1673814799237,2.03842575,20868.0,20867.0,0.00950664]
[1673814799748,1.60326075,20868.0,20867.0,0.00950664]
[1673814799971,2.39671761,20868.0,20867.0,0.00950664]
[1673814800414,2.64499135,20868.0,20867.0,0.00950664]
[1673814800941,2.2866072,20868.0,20867.0,0.00950664]
[1673814801188,2.06636645,20868.0,20867.0,0.00950664]
[1673814801443,1.67461068,20868.0,20867.0,0.00950664]
[1673814802151,1.67461068,20868.0,20867.0,0.00770664]
[1673814803514,1.45977872,20868.0,20867.0,0.00770664]
[1673814803772,1.56011068,20868.0,20867.0,0.00770664]
[1673814806288,1.41043468,20868.0,20867.0,0.00770664]
[1673814806542,1.56011068,20868.0,20867.0,0.00770664]
[1673814807683,1.70359271,20868.0,20867.0,0.00770664]
[1673814808180,1.98061147,20868.0,20867.0,0.00770664]
[1673814808653,1.76569754,20868.0,20867.0,0.00770664]
[1673814809491,1.48876075,20868.0,20867.0,0.00770664]
[1673814809628,2.28197088,20868.0,20867.0,0.00756664]
[1673814810499,1.92358673,20868.0,20867.0,0.00756664]
[1673814810755,1.48876075,20868.0,20867.0,0.00756664]
[1673814811007,1.70373171,20868.0,20867.0,0.00756664]
[1673814811547,1.26734839,20868.0,20867.0,0.00756664]
[1673814811771,1.70373171,20868.0,20867.0,0.00756664]
[1673814812274,1.26734839,20868.0,20867.0,0.00756664]
[1673814812799,1.55405571,20868.0,20867.0,0.00756664]
[1673814813055,1.70373171,20868.0,20867.0,0.00756664]
[1673814813816,2.28257866,20868.0,20867.0,0.00756664]
[1673814814808,1.99587134,20868.0,20867.0,0.00756664]
[1673814816067,1.84619534,20868.0,20867.0,0.00756664]
[1673814816279,1.99587134,20868.0,20867.0,0.00756664]
[1673814817304,2.13324219,20868.0,20867.0,0.00756664]
[1673814817816,1.99587134,20868.0,20867.0,0.00756664]
[1673814818323,1.84619534,20868.0,20867.0,0.00756664]
[1673814818588,1.99587134,20868.0,20867.0,0.00756664]
[1673814819098,1.84619534,20868.0,20867.0,0.00756664]
[1673814819601,2.04400967,20868.0,20867.0,0.00756664]
[1673814821067,2.19368567,20868.0,20867.0,0.00756664]
[1673814821322,1.99587134,20868.0,20867.0,0.00756664]
[1673814821543,2.28303959,20868.0,20867.0,0.00756664]
[1673814821803,2.13336359,20868.0,20867.0,0.00756664]
[1673814822239,1.99587134,20868.0,20867.0,0.00756664]
[1673814822493,2.28304127,20868.0,20867.0,0.00756664]
[1673814822788,2.13336527,20868.0,20867.0,0.00756664]
[1673814824837,1.55499578,20868.0,20867.0,0.00756664]
[1673814825088,2.13107805,20868.0,20867.0,0.00756664]
[1673814825578,1.33954736,20868.0,20867.0,0.00756664]
[1673814825830,1.55500219,20868.0,20867.0,0.00756664]
[1673814826336,1.55500219,20868.0,20867.0,0.00256664]
[1673814826615,1.33954736,20868.0,20867.0,0.00256664]
[1673814827128,1.77269796,20868.0,20867.0,0.00256664]
[1673814827604,1.33954736,20868.0,20867.0,0.00256664]
[1673814827871,1.84354798,20868.0,20867.0,0.00256664]
[1673814828121,1.99322398,20868.0,20867.0,0.00256664]
[1673814828855,1.84354798,20868.0,20867.0,0.00256664]
[1673814829598,1.99322398,20868.0,20867.0,0.00256664]
[1673814829847,1.84354798,20868.0,20867.0,0.00256664]
[1673814830082,1.99322398,20868.0,20867.0,0.00256664]
[1673814830652,1.84354798,20868.0,20867.0,0.00256664]
[1673814830870,1.84354798,20868.0,20866.0,0.00532988]
[1673814831123,1.84354798,20868.0,20866.0,0.09835325]
[1673814831124,0.50270341,20867.0,20866.0,0.09835325]
[1673814831882,0.21544432,20867.0,20866.0,0.09835325]
[1673814833037,0.35907953,20867.0,20866.0,0.09935325]
[1673814833292,0.35907953,20867.0,20866.0,0.09835325]
[1673814833542,0.53870341,20867.0,20866.0,0.09935325]
[1673814833794,0.39508268,20867.0,20866.0,0.09935325]
[1673814834613,0.39508268,20867.0,20866.0,0.09912857]
[1673814835424,1.01792841,20867.0,20866.0,0.09912857]
[1673814836940,0.87434087,20867.0,20866.0,0.09912857]
[1673814837431,0.39511587,20867.0,20866.0,0.09912857]
[1673814838723,0.25144432,20867.0,20866.0,0.09912857]
[1673814838980,0.39511097,20867.0,20866.0,0.09912857]
[1673814839505,0.39511097,20867.0,20866.0,0.0061052]
[1673814839996,0.395109,20867.0,20866.0,0.0061052]
[1673814840257,0.25144432,20867.0,20866.0,0.0061052]
[1673814840771,0.39511179,20867.0,20866.0,0.0061052]
[1673814841031,0.17966747,20867.0,20866.0,0.0061052]
[1673814841314,0.39511179,20867.0,20866.0,0.0061052]
[1673814841538,0.39511179,20867.0,20866.0,0.12067555]
[1673814842019,0.39511179,20867.0,20866.0,0.0061052]
[1673814842491,0.25144432,20867.0,20866.0,0.0061052]
[1673814843025,0.39511606,20867.0,20866.0,0.0061052]
[1673814843791,0.17967174,20867.0,20866.0,1.07051351]
[1673814844045,0.036,20867.0,20866.0,1.09174751]
[1673814844304,0.036,20867.0,20866.0,1.23511416]
[1673814844559,0.036,20867.0,20866.0,1.53511416]
[1673814845360,0.036,20867.0,20866.0,2.49363696]
[1673814845625,0.036,20867.0,20866.0,2.63930526]
[1673814845936,0.036,20867.0,20866.0,2.75350526]
[1673814846181,0.036,20867.0,20866.0,2.84649947]
[1673814846679,0.012048,20867.0,20866.0,3.25837775]
[1673814846947,0.04931732,20872.0,20866.0,3.20402963]
[1673814847150,0.04931732,20872.0,20870.0,0.1142]
[1673814847444,0.04931732,20872.0,20871.0,0.332569]
[1673814847694,0.35911606,20873.0,20871.0,0.332569]
[1673814847949,0.35911606,20873.0,20872.0,0.065741]
[1673814848211,0.35911606,20873.0,20871.0,0.01142]
[1673814848995,0.41911606,20873.0,20871.0,0.003]
[1673814849247,0.14367174,20872.0,20871.0,0.003]
[1673814850277,0.98181341,20872.0,20871.0,0.003]
[1673814850533,1.70850912,20872.0,20867.0,0.69069347]
[1673814850788,1.56948788,20872.0,20871.0,0.003]
[1673814851039,1.22445206,20872.0,20871.0,0.003]
[1673814851295,1.78022954,20872.0,20871.0,0.003]
[1673814851546,1.70851221,20872.0,20867.0,0.69069347]
[1673814851806,0.1434032,20871.0,20868.0,0.766765]
[1673814852056,0.83761799,20872.0,20869.0,0.14574585]
[1673814852274,0.83761799,20872.0,20871.0,0.003]
[1673814852275,0.86161799,20872.0,20871.0,0.003]
[1673814852563,0.83761799,20872.0,20869.0,0.77184441]
[1673814852817,0.006,20871.0,20869.0,0.77184441]
[1673814853065,0.6225132,20872.0,20869.0,0.77184441]
[1673814853316,0.6465132,20872.0,20871.0,0.003]
[1673814853582,0.83761799,20872.0,20869.0,0.77184441]
[1673814853837,0.6225132,20872.0,20869.0,0.77184441]
[1673814854327,0.83761699,20873.0,20870.0,0.62724882]
[1673814854628,0.005,20871.0,20870.0,0.62724882]
[1673814854836,0.6225122,20873.0,20870.0,0.62724882]
[1673814855075,0.024,20872.0,20870.0,0.62724882]
[1673814855334,0.024,20872.0,20870.0,0.74194882]
[1673814855586,0.024,20872.0,20871.0,0.61134208]
[1673814856343,0.479109,20873.0,20871.0,0.61134208]
[1673814857362,0.06,20872.0,20871.0,0.61134208]
[1673814858109,0.88643789,20874.0,20871.0,0.61134208]
[1673814858420,0.06,20873.0,20871.0,0.80506803]
[1673814858630,0.6713331,20874.0,20871.0,0.61134208]
[1673814858909,0.5279299,20874.0,20871.0,0.61134208]
[1673814859163,0.5879299,20874.0,20872.0,0.07260421]
[1673814859668,0.539077,20874.0,20872.0,0.07260421]
[1673814860192,0.479077,20874.0,20872.0,0.07260421]
[1673814860415,0.539077,20874.0,20872.0,0.07560421]
[1673814860875,0.6824802,20874.0,20872.0,0.07560421]
[1673814861129,0.6824802,20874.0,20872.0,0.003]
[1673814861384,0.149676,20873.0,20872.0,0.003]
[1673814861670,0.7721662,20873.0,20872.0,0.003]
[1673814861927,0.6124902,20873.0,20872.0,0.003]
[1673814862183,0.6124902,20873.0,20870.0,0.1147]
[1673814862494,0.6724902,20873.0,20872.0,0.003]
[1673814862735,0.539087,20873.0,20872.0,0.003]
[1673814863988,0.479087,20873.0,20870.0,0.64635227]
[1673814864247,0.539087,20873.0,20870.0,0.64935227]
[1673814864503,0.479087,20873.0,20870.0,0.64635227]
[1673814864778,0.539087,20873.0,20872.0,0.003]
[1673814865027,0.479087,20873.0,20870.0,0.64635227]
[1673814865271,0.539087,20873.0,20870.0,0.64935227]
[1673814866298,0.75419179,20873.0,20870.0,0.64935227]
[1673814866546,0.539087,20873.0,20870.0,0.003]
[1673814866803,0.75419179,20873.0,20870.0,0.003]
[1673814870742,0.21510479,20872.0,20870.0,0.003]
[1673814870995,0.479133,20871.0,20870.0,0.003]
[1673814871302,0.628809,20871.0,20870.0,0.003]
[1673814871555,0.628809,20871.0,20868.0,0.1147]
[1673814871825,0.479133,20871.0,20870.0,0.003]
[1673814872077,0.62246892,20871.0,20868.0,0.80063787]
[1673814872327,0.64646892,20871.0,20870.0,0.003]
[1673814872834,0.80464492,20871.0,20870.0,0.003]
[1673814873828,0.99574971,20871.0,20867.0,0.74055311]
[1673814874088,0.85307371,20871.0,20868.0,0.024]
[1673814874365,0.84607371,20871.0,20867.0,0.74055311]
[1673814874606,0.86607371,20871.0,20870.0,0.003]
[1673814875113,0.86607371,20871.0,20867.0,0.74055311]
[1673814875114,0.99574971,20871.0,20867.0,0.74055311]
[1673814875352,0.85207371,20871.0,20867.0,0.76455311]
[1673814875607,0.84607371,20871.0,20867.0,0.88357909]
[1673814875856,0.86607371,20871.0,20870.0,0.003]
[1673814876100,0.65096892,20871.0,20870.0,0.003]
[1673814876590,0.487633,20871.0,20868.0,0.61276821]
[1673814876845,0.554633,20871.0,20868.0,0.61276821]
[1673814877093,0.554633,20871.0,20869.0,0.07294682]
[1673814877347,0.621633,20871.0,20870.0,0.002]
[1673814877602,0.621633,20871.0,20870.0,0.83522127]
[1673814877850,0.88548719,20873.0,20870.0,0.83322127]
[1673814878100,0.1912954,20873.0,20871.0,0.13207681]
[1673814878354,0.1912954,20873.0,20871.0,0.24677681]
[1673814878714,0.14333592,20873.0,20871.0,0.24677681]
[1673814878921,0.35844071,20873.0,20871.0,0.24677681]
[1673814880167,0.37844071,20873.0,20871.0,0.24977681]
[1673814880666,0.37844071,20873.0,20872.0,0.64680354]
[1673814880915,0.38694071,20873.0,20872.0,0.73137886]
[1673814881425,0.37844071,20873.0,20872.0,0.73137886]
[1673814882429,0.35844071,20873.0,20872.0,0.73137886]
[1673814882646,0.42544071,20873.0,20872.0,0.73337886]
[1673814883166,0.42544071,20873.0,20872.0,0.27730127]
[1673814883439,0.21033592,20873.0,20872.0,1.05120932]
[1673814883684,0.067,20873.0,20872.0,1.53291256]
[1673814883945,0.067,20873.0,20872.0,1.4097266]
[1673814884182,0.067,20873.0,20872.0,1.68142585]
[1673814884428,0.19971385,20876.0,20872.0,2.63764359]
[1673814884675,0.05626143,20876.0,20875.0,0.1147]
[1673814884929,0.05626143,20876.0,20875.0,0.435884]
[1673814885177,0.00754529,20876.0,20875.0,0.435884]
[1673814885434,0.00754529,20876.0,20875.0,0.735884]
[1673814885693,0.00754529,20876.0,20875.0,0.435884]
[1673814885958,0.00754529,20876.0,20875.0,0.52045932]
[1673814886322,0.07454529,20876.0,20875.0,0.52245932]
[1673814886541,0.21788121,20876.0,20875.0,0.52245932]
[1673814886795,0.07454529,20876.0,20875.0,0.99502349]
[1673814888318,1.55587767,20879.0,20876.0,0.59909154]
[1673814888580,0.14336527,20877.0,20876.0,0.90451749]
[1673814888869,0.14336527,20878.0,20876.0,0.71379154]
[1673814889129,0.14336527,20878.0,20877.0,0.49078551]
[1673814889372,0.62233827,20878.0,20877.0,0.49078551]
[1673814890375,0.62833827,20878.0,20877.0,0.49778551]
[1673814890626,0.76623209,20878.0,20875.0,0.68520175]
[1673814890877,0.77223209,20878.0,20877.0,0.007]
[1673814891124,1.18070937,20878.0,20877.0,0.007]
[1673814891412,1.53909352,20878.0,20877.0,0.007]
[1673814891654,0.77223209,20878.0,20877.0,0.007]
[1673814891904,1.53309568,20878.0,20875.0,0.68520175]
[1673814892147,1.12461624,20878.0,20875.0,0.68520175]
[1673814892402,0.14330991,20877.0,20875.0,0.68520175]
[1673814892712,0.62230691,20877.0,20875.0,0.68520175]
[1673814893657,0.62830691,20877.0,20875.0,0.76819193]
[1673814893908,0.62830691,20877.0,20875.0,0.65399193]
[1673814894407,0.28725909,20876.0,20875.0,0.003]
[1673814894657,0.91595309,20876.0,20875.0,0.003]
[1673814894909,0.76627709,20876.0,20875.0,0.003]
[1673814895391,0.91595309,20876.0,20872.0,0.56068525]
[1673814895641,0.14330719,20875.0,20872.0,0.56068525]
[1673814895890,1.10141419,20875.0,20872.0,0.56068525]
[1673814896647,1.10141419,20875.0,20872.0,0.64668525]
[1673814896859,1.10141419,20875.0,20872.0,0.56068525]
[1673814897365,1.3163779,20875.0,20872.0,0.56068525]
[1673814897610,1.10141419,20875.0,20872.0,0.56068525]
[1673814897834,1.10141419,20875.0,20872.0,0.64668525]
[1673814898091,1.10141419,20875.0,20872.0,0.56068525]
[1673814898342,1.10741419,20875.0,20872.0,0.56768525]
[1673814898599,1.3223779,20875.0,20872.0,0.56768525]
[1673814898843,1.10741419,20875.0,20872.0,0.56768525]
[1673814902619,1.10724119,20875.0,20872.0,0.56768525]
[1673814903149,1.3222049,20875.0,20872.0,0.56768525]
[1673814903409,1.17907071,20875.0,20872.0,0.56768525]
[1673814903917,1.4603298,20875.0,20872.0,0.56068525]
[1673814904200,1.4663298,20875.0,20872.0,0.56768525]
[1673814907158,0.21496371,20874.0,20872.0,0.56768525]
[1673814907412,0.69404271,20874.0,20872.0,0.56768525]
[1673814907665,0.479079,20874.0,20872.0,0.56768525]
[1673814907918,0.479079,20874.0,20872.0,0.56068525]
[1673814908143,0.479079,20874.0,20872.0,0.56768525]
[1673814908144,0.485079,20874.0,20872.0,0.56768525]
[1673814909160,0.485079,20874.0,20872.0,0.007]
[1673814909161,0.21496371,20873.0,20872.0,0.007]
[1673814909429,1.2456858,20873.0,20872.0,0.007]
[1673814909694,0.95842671,20873.0,20872.0,0.007]
[1673814910196,0.95842671,20873.0,20870.0,2.62916819]
[1673814910463,0.81475071,20873.0,20872.0,0.007]
[1673814910720,0.96442671,20873.0,20872.0,0.007]
[1673814910998,1.2516858,20873.0,20872.0,0.007]
[1673814911523,2.26356911,20873.0,20872.0,0.007]
[1673814911837,0.016614,20871.0,20866.0,0.0051052]
[1673814912095,0.50180685,20867.0,20866.0,0.0051052]
[1673814912346,2.84689211,20867.0,20866.0,0.0051052]
[1673814912606,2.90863729,20867.0,20866.0,0.0051052]
[1673814912859,2.95651057,20867.0,20866.0,0.0051052]
[1673814913137,3.30449696,20867.0,20866.0,0.0051052]
[1673814913390,3.64679696,20867.0,20866.0,0.0051052]
[1673814914458,4.17834615,20867.0,20866.0,0.0051052]
[1673814914712,4.50817024,20867.0,20865.0,0.0079946]
[1673814914962,4.50817024,20867.0,20864.0,0.00930024]